bitfinex/quotes_SOLUSD_20241214
["timestamp","ask_amount","ask_price","bid_price","bid_amount"]
[1734165136629,8.21960711,225.7,225.64,1.5452]
[1734165136838,0.6649591,225.69,225.64,1.5452]
[1734165137228,8.21960711,225.7,225.65,0.12549]
[1734165137645,8.21960711,225.7,225.65,24.027864]
[1734165137846,0.6649591,225.69,225.65,24.027864]
[1734165138239,0.6649591,225.69,225.65,0.12549]
[1734165138643,8.88456621,225.69,225.65,0.37647]
[1734165139292,8.21960711,225.68,225.58,1.5334]
[1734165139557,0.6649591,225.68,225.64,0.12549]
[1734165139853,0.6649591,225.7,225.64,0.25098]
[1734165140028,0.6649591,225.7,225.64,8.47058711]
[1734165140661,0.6649591,225.7,225.66,0.37647]
[1734165141860,8.88456621,225.7,225.66,0.37647]
[1734165142248,8.21960711,225.68,225.65,0.12549]
[1734165142559,0.6649591,225.67,225.53,0.66479336]
[1734165142745,8.21960711,225.61,225.51,2.71762694]
[1734165142941,8.21960711,225.59,225.5,2.19829349]
[1734165143144,8.21960711,225.58,225.5,2.19829349]
[1734165143345,8.21960711,225.58,225.51,8.21960711]
[1734165143546,8.21960711,225.58,225.5,0.66489349]
[1734165143547,8.21960711,225.58,225.5,8.21960711]
[1734165143745,8.88456621,225.57,225.5,8.21960711]
[1734165144145,8.21960711,225.56,225.49,8.21960711]
[1734165144457,0.6649591,225.55,225.49,8.21960711]
[1734165144852,8.88456621,225.55,225.49,0.25098]
[1734165145161,8.21960711,225.54,225.49,0.25098]
[1734165145458,0.6649591,225.6,225.51,24.153354]
[1734165145663,8.21960711,225.63,225.57,24.153354]
[1734165145962,8.88456621,225.62,225.57,24.153354]
[1734165146259,8.88456621,225.62,225.57,0.37647]
[1734165146467,0.6649591,225.62,225.59,0.12549]
[1734165146670,8.21960711,225.65,225.59,0.12549]
[1734165146842,0.6649591,225.64,225.59,0.12549]
[1734165147236,0.6649591,225.64,225.61,44.153354]
[1734165147451,7.7504,225.8,225.65,0.12549]
[1734165147452,0.6649591,225.71,225.65,0.12549]
[1734165147746,8.21960711,225.73,225.68,23.902374]
[1734165148062,8.21960711,225.71,225.65,0.12549]
[1734165148362,8.88456621,225.7,225.64,23.776884]
[1734165148747,0.6649591,225.7,225.65,0.12549]
[1734165149078,54.71042844,225.83,225.65,0.12549]
[1734165149079,0.6649591,225.82,225.7,0.12549]
[1734165149254,8.21960711,225.77,225.7,0.12549]
[1734165149571,0.6649591,225.76,225.7,0.12549]
[1734165150965,0.6649591,225.76,225.64,6.69227769]
[1734165150966,8.21960711,225.71,225.64,8.21960711]
[1734165151176,0.6649591,225.7,225.65,0.25098]
[1734165151670,0.6649591,225.77,225.69,8.21960711]
[1734165151853,0.6649591,225.8,225.75,0.12549]
[1734165152053,0.6649591,225.8,225.75,23.902374]
[1734165152765,8.88456621,225.8,225.7,0.12549]
[1734165152974,8.88456621,225.8,225.72,23.902374]
[1734165153641,8.88456621,225.8,225.73,0.12549]
[1734165154371,8.21960711,225.78,225.73,0.12549]
[1734165154678,0.6649591,225.77,225.73,0.12549]
[1734165155243,0.6649591,225.77,225.67,20.0]
[1734165155546,0.6649591,225.77,225.73,30.0]
[1734165159165,0.6649591,225.77,225.71,0.12549]
[1734165159347,0.6649591,225.77,225.71,23.902374]
[1734165160968,0.6649591,225.79,225.71,23.902374]
[1734165161566,20.0,225.75,225.64,5.76069083]
[1734165161810,8.21960711,225.7,225.63,8.21960711]
[1734165161952,0.6649591,225.69,225.63,8.21960711]
[1734165162142,0.6649591,225.69,225.64,8.21960711]
[1734165162357,0.6649591,225.69,225.65,30.0]
[1734165163175,0.6649591,225.7,225.65,30.0]
[1734165163964,0.6649591,225.7,225.66,24.153354]
[1734165164167,8.21960711,225.73,225.66,32.37296111]
[1734165164368,0.6649591,225.72,225.66,24.153354]
[1734165164781,0.6649591,225.78,225.73,0.12549]
[1734165165085,8.21960711,225.82,225.77,0.12549]
[1734165165383,0.6649591,225.81,225.77,0.12549]
[1734165166007,12.94155128,225.8,225.76,30.0]
[1734165166183,12.94155128,225.77,225.76,30.0]
[1734165167195,0.6649591,225.79,225.76,30.0]
[1734165167373,0.6649591,225.79,225.73,23.902374]
[1734165167695,0.6649591,225.79,225.73,0.25098]
[1734165167890,0.6649591,225.79,225.74,23.776884]
[1734165168886,0.6649591,225.79,225.75,30.0]
[1734165169696,0.6649591,225.79,225.73,24.027864]
[1734165170101,12.94155128,225.78,225.73,24.027864]
[1734165170400,12.94155128,225.78,225.72,0.12549]
[1734165170401,0.6649591,225.77,225.72,0.12549]
[1734165172407,0.6649591,225.79,225.74,0.25098]
[1734165172612,0.6649591,225.79,225.78,13.19253128]
[1734165172779,7.7472,225.89,225.79,24.027864]
[1734165172780,0.6649591,225.86,225.79,24.027864]
[1734165172984,0.6649591,225.86,225.82,12.94155128]
[1734165173186,0.6649591,225.89,225.82,12.94155128]
[1734165173588,13.60651038,225.89,225.82,12.94155128]
[1734165174792,13.60651038,225.89,225.82,36.84392528]
[1734165175004,0.6649591,225.89,225.83,12.94155128]
[1734165175201,0.6649591,225.89,225.83,42.29155128]
[1734165175500,13.60651038,225.89,225.83,29.35]
[1734165176711,0.6649591,225.89,225.84,23.776884]
[1734165176898,0.6649591,225.9,225.84,66.66843528]
[1734165177478,0.6649591,225.9,225.85,13.19253128]
[1734165177678,0.6649591,225.9,225.86,23.776884]
[1734165177906,0.6649591,225.92,225.86,53.726884]
[1734165178804,13.60651038,225.92,225.86,53.726884]
[1734165182188,0.6649591,225.92,225.86,53.726884]
[1734165182506,0.6649591,225.93,225.86,53.726884]
[1734165185418,0.6649591,225.93,225.89,0.25098]
[1734165185598,18.79266119,226.07,225.89,0.25098]
[1734165185599,0.6649591,226.01,225.96,0.12549]
[1734165185999,0.6649591,226.01,225.96,0.25098]
[1734165186716,13.60651038,226.02,225.96,29.35]
[1734165190509,12.94155128,225.99,225.96,29.35]
[1734165190709,0.6649591,225.98,225.96,29.35]
[1734165191122,0.6649591,225.98,225.93,24.027864]
[1734165191609,0.6649591,225.99,225.93,24.027864]
[1734165192108,0.6649591,225.99,225.93,36.96941528]
[1734165192307,0.6649591,225.99,225.94,12.94155128]
[1734165192504,0.6649591,226.01,225.96,12.94155128]
[1734165192819,12.94155128,226.04,225.96,12.94155128]
[1734165193013,12.94155128,226.04,225.98,23.776884]
[1734165193014,0.6649591,226.03,225.98,23.776884]
[1734165194125,13.60651038,226.03,225.98,53.686884]
[1734165197829,0.6649591,226.03,225.98,53.686884]
[1734165198030,0.6649591,226.09,225.99,0.25098]
[1734165198206,12.94155128,226.07,226.0,12.94155128]
[1734165198406,0.6649591,226.09,226.04,12.94155128]
[1734165198636,100.3121,226.16,226.04,12.94155128]
[1734165198637,12.94155128,226.12,226.04,12.94155128]
[1734165198930,0.6649591,226.11,226.04,12.94155128]
[1734165199526,12.94155128,226.1,226.03,12.94155128]
[1734165199716,0.6649591,226.09,226.03,12.94155128]
[1734165200716,12.94155128,226.11,226.02,0.37647]
[1734165200717,0.6649591,226.1,226.04,12.94155128]
[1734165203550,0.6649591,226.1,226.04,42.94155128]
[1734165203724,0.6649591,226.11,226.04,42.94155128]
[1734165204815,0.6649591,226.11,226.04,30.0]
[1734165205216,0.6649591,226.11,226.02,13.31802128]
[1734165207152,8.92618475,226.11,226.02,8.63769565]
[1734165207722,8.92618475,226.11,226.03,8.26122565]
[1734165208151,8.92618475,226.11,226.05,0.12549]
[1734165208451,8.92618475,226.11,226.06,8.51220565]
[1734165208452,0.6649591,226.11,226.06,8.51220565]
[1734165208649,0.6649591,226.13,226.07,8.26122565]
[1734165208856,0.6649591,226.13,226.08,8.26122565]
[1734165209029,0.6649591,226.13,226.07,8.26122565]
[1734165210642,0.6649591,226.13,226.08,8.26122565]
[1734165210945,0.6649591,226.14,226.08,8.26122565]
[1734165211152,8.92618475,226.14,226.07,8.26122565]
[1734165211345,0.6649591,226.14,226.07,8.26122565]
[1734165211568,8.92618475,226.14,226.07,8.26122565]
[1734165212627,8.92618475,226.14,226.08,24.153354]
[1734165213968,0.6649591,226.15,226.08,24.153354]
[1734165215133,0.6649591,226.15,226.1,24.153354]
[1734165215341,8.26122565,226.18,226.1,24.153354]
[1734165215639,0.6649591,226.17,226.11,8.26122565]
[1734165216563,0.6649591,226.18,226.13,0.25098]
[1734165216861,0.6649591,226.2,226.14,8.26122565]
[1734165217933,8.26122565,226.21,226.14,8.26122565]
[1734165218142,0.6649591,226.2,226.15,8.26122565]
[1734165218340,8.26122565,226.22,226.15,8.26122565]
[1734165218541,0.6649591,226.21,226.15,8.26122565]
[1734165219546,8.26122565,226.22,226.15,8.26122565]
[1734165219767,0.6649591,226.21,226.15,8.26122565]
[1734165219972,8.92618475,226.21,226.15,0.12549]
[1734165220563,0.6649591,226.21,226.15,0.12549]
[1734165220864,8.26122565,226.21,226.15,0.12549]
[1734165221062,0.6649591,226.2,226.15,0.12549]
[1734165221371,0.6649591,226.2,226.14,0.12549]
[1734165221571,0.6649591,226.2,226.14,0.25098]
[1734165222773,0.6649591,226.2,226.15,0.12549]
[1734165226149,8.26122565,226.19,226.11,0.12549]
[1734165226472,0.6649591,226.18,226.12,28.26122565]
[1734165226647,0.6649591,226.18,226.13,0.25098]
[1734165226970,8.26122565,226.2,226.13,0.25098]
[1734165227173,0.6649591,226.19,226.13,8.51220565]
[1734165227758,0.6649591,226.2,226.13,8.51220565]
[1734165228970,0.6649591,226.2,226.13,0.25098]
[1734165230070,0.6649591,226.2,226.13,8.51220565]
[1734165230275,0.6649591,226.24,226.13,8.51220565]
[1734165230573,8.26122565,226.21,226.13,8.51220565]
[1734165230772,0.6649591,226.2,226.13,8.51220565]
[1734165233871,8.26122565,226.19,226.09,0.12549]
[1734165234052,0.6649591,226.18,226.11,8.26122565]
[1734165234867,0.6649591,226.18,226.12,0.25098]
[1734165235077,8.26122565,226.19,226.12,0.25098]
[1734165235376,0.6649591,226.18,226.12,0.25098]
[1734165236194,0.6649591,226.18,226.1,0.25098]
[1734165236366,0.6649591,226.18,226.08,1.5415]
[1734165236679,0.6649591,226.18,226.1,8.26122565]
[1734165237286,0.6649591,226.18,226.11,0.12549]
[1734165237467,8.26122565,226.17,226.1,0.12549]
[1734165237667,0.6649591,226.16,226.1,0.12549]
[1734165237886,8.92618475,226.16,226.1,0.12549]
[1734165240186,0.6649591,226.16,226.1,0.12549]
[1734165242868,8.92618475,226.16,226.1,0.12549]
[1734165244059,0.6649591,226.16,226.1,0.12549]
[1734165245068,8.26122565,226.17,226.1,0.12549]
[1734165245270,0.6649591,226.16,226.1,0.12549]
[1734165245866,8.92618475,226.16,226.09,0.25098]
[1734165249570,8.92618475,226.16,226.1,0.12549]
[1734165249571,0.6649591,226.16,226.1,0.12549]
[1734165250811,0.6649591,226.16,226.1,8.26122565]
[1734165250982,8.92618475,226.18,226.1,8.26122565]
[1734165252179,7.0355591,226.19,226.14,0.25098]
[1734165252489,6.3706,226.19,226.14,0.25098]
[1734165253570,2.2074591,226.2,226.14,0.25098]
[1734165253778,0.6649591,226.2,226.14,0.25098]
[1734165253985,0.6649591,226.2,226.15,0.12549]
[1734165254675,0.6649591,226.2,226.14,0.25098]
[1734165257594,8.26122565,226.22,226.15,0.12549]
[1734165257791,6.8543591,226.24,226.17,8.51220565]
[1734165258118,6.8543591,226.24,226.19,0.25098]
[1734165258515,6.8543591,226.24,226.18,0.25098]
[1734165259493,6.8543591,226.24,226.19,0.25098]
[1734165261120,1.2042711,226.25,226.2,8.51220565]
[1734165261622,1.2042711,226.25,226.2,0.25098]
[1734165264813,0.539312,226.25,226.2,8.51220565]
[1734165265426,0.539312,226.25,226.2,0.25098]
[1734165265602,0.539312,226.25,226.21,0.12549]
[1734165265807,0.539312,226.25,226.22,8.51220565]
[1734165270708,0.539312,226.25,226.23,0.12549]
[1734165271223,0.539312,226.25,226.22,0.25098]
[1734165271426,0.539312,226.25,226.18,0.12549]
[1734165271609,0.539312,226.25,226.21,0.12549]
[1734165271809,0.539312,226.25,226.21,0.37647]
[1734165272014,0.539312,226.25,226.21,8.63769565]
[1734165273927,0.539312,226.25,226.21,8.38671565]
[1734165274227,0.539312,226.25,226.2,0.12549]
[1734165274454,0.539312,226.25,226.2,0.37647]
[1734165275012,0.539312,226.25,226.16,1.80442676]
[1734165275013,0.6649591,226.24,226.18,8.26122565]
[1734165275217,0.6649591,226.24,226.19,0.12549]
[1734165275633,0.6649591,226.24,226.19,0.37647]
[1734165277020,0.539312,226.25,226.19,0.37647]
[1734165277230,0.539312,226.25,226.19,8.63769565]
[1734165278323,0.539312,226.25,226.19,0.37647]
[1734165282545,0.6649591,226.24,226.16,0.25098]
[1734165282841,0.6649591,226.24,226.19,0.12549]
[1734165283631,0.6649591,226.24,226.19,0.37647]
[1734165283821,1.2042711,226.25,226.19,0.37647]
[1734165291351,1.2042711,226.25,226.18,0.12549]
[1734165293248,1.2042711,226.25,226.17,0.12549]
[1734165295559,1.2042711,226.25,226.18,8.26122565]
[1734165302560,1.2042711,226.25,226.19,0.12549]
[1734165302728,0.539312,226.25,226.19,0.12549]
[1734165304061,0.539312,226.25,226.2,0.12549]
[1734165304269,0.6649591,226.24,226.16,0.12549]
[1734165304508,0.6649591,226.24,226.17,8.26122565]
[1734165304653,0.6649591,226.24,226.18,0.12549]
[1734165305159,0.6649591,226.24,226.18,0.37647]
[1734165306361,0.54833995,226.24,226.18,0.37647]
[1734165310872,0.539312,226.25,226.18,0.37647]
[1734165312844,0.539312,226.25,226.2,0.25098]
[1734165314051,0.539312,226.25,226.22,0.25098]
[1734165314461,0.539312,226.25,226.22,8.51220565]
[1734165317167,0.539312,226.25,226.22,0.25098]
[1734165318098,0.539312,226.25,226.22,8.51220565]
[1734165320695,0.539312,226.25,226.23,0.12549]
[1734165320991,0.539312,226.25,226.24,8.51220565]
[1734165321201,0.539312,226.25,226.24,8.63769565]
[1734165336209,6.88921454,226.37,226.24,8.63769565]
[1734165336210,0.54833995,226.38,226.29,0.37647]
[1734165336412,14.61781454,226.44,226.38,0.12549]
[1734165336413,7.43755449,226.44,226.38,0.12549]
[1734165336614,0.54833995,226.45,226.39,8.26122565]
[1734165336785,15.0744656,226.46,226.4,0.37647]
[1734165336990,6.81323995,226.46,226.4,0.37647]
[1734165337198,6.2649,226.46,226.4,0.37647]
[1734165337404,6.2649,226.46,226.4,8.63769565]
[1734165337711,6.2649,226.46,226.42,0.25098]
[1734165338707,6.2649,226.46,226.43,0.12549]
[1734165340498,0.539312,226.47,226.43,0.12549]
[1734165343085,0.539312,226.47,226.46,8.63769565]
[1734165343404,0.21007937,226.56,226.5,20.37647]
[1734165343709,0.21007937,226.56,226.55,0.37647]
[1734165344213,0.21007937,226.56,226.55,8.63769565]
[1734165349101,10.0,226.6,226.56,0.12549]
[1734165349316,10.0,226.6,226.58,0.12549]
[1734165352506,10.0,226.6,226.59,0.37647]
[1734165360430,10.0,226.6,226.54,20.66188456]
[1734165360431,10.0,226.6,226.54,20.0]
[1734165360613,10.54833995,226.6,226.55,0.12549]
[1734165360816,10.0,226.6,226.55,0.12549]
[1734165361224,10.0,226.6,226.55,0.37647]
[1734165361418,10.0,226.6,226.55,8.63769565]
[1734165362122,10.0,226.6,226.56,8.26122565]
[1734165362331,10.0,226.6,226.57,0.37647]
[1734165366643,10.0,226.6,226.53,20.0]
[1734165366945,8.8095656,226.59,226.52,8.26122565]
[1734165367447,8.26122565,226.57,226.5,12.14662396]
[1734165367624,0.54833995,226.56,226.51,0.12549]
[1734165368315,0.54833995,226.56,226.5,0.25098]
[1734165368733,0.54833995,226.56,226.5,8.26122565]
[1734165369234,0.54833995,226.56,226.51,0.12549]
[1734165369838,8.26122565,226.55,226.47,19.5209253]
[1734165370146,0.54833995,226.54,226.48,8.26122565]
[1734165370937,0.54833995,226.54,226.49,0.12549]
[1734165372939,8.8095656,226.55,226.49,0.12549]
[1734165375122,8.26122565,226.54,226.45,6.38593313]
[1734165375351,8.8095656,226.53,226.46,8.38671565]
[1734165376053,0.54833995,226.53,226.47,0.12549]
[1734165376218,0.54833995,226.53,226.47,8.38671565]
[1734165376851,0.54833995,226.54,226.47,8.38671565]
[1734165377430,0.54833995,226.54,226.48,8.26122565]
[1734165377644,8.8095656,226.54,226.47,8.26122565]
[1734165379526,8.8095656,226.54,226.46,0.12549]
[1734165379743,8.8095656,226.54,226.46,8.38671565]
[1734165381751,8.8095656,226.54,226.47,30.0]
[1734165381960,8.26122565,226.49,226.47,30.0]
[1734165382158,8.8095656,226.48,226.47,30.0]
[1734165383033,8.8095656,226.48,226.4,8.26122565]
[1734165383229,8.8095656,226.48,226.42,30.0]
[1734165383638,0.54833995,226.48,226.42,30.0]
[1734165384156,0.54833995,226.48,226.42,38.26122565]
[1734165384344,0.54833995,226.48,226.42,30.0]
[1734165384559,0.54833995,226.48,226.41,8.26122565]
[1734165385246,24.32522395,226.48,226.35,1.5436]
[1734165385423,24.32522395,226.48,226.38,8.38671565]
[1734165385424,8.26122565,226.45,226.38,8.38671565]
[1734165385628,0.54833995,226.44,226.38,8.38671565]
[1734165385826,0.54833995,226.44,226.39,0.12549]
[1734165386452,0.54833995,226.44,226.39,30.12549]
[1734165386659,8.8095656,226.45,226.39,30.12549]
[1734165387833,8.8095656,226.45,226.39,30.0]
[1734165390943,33.56760965,226.4,226.39,30.0]
[1734165391470,34.1159496,226.4,226.39,30.0]
[1734165392260,23.776884,226.39,226.31,0.12549]
[1734165392467,8.8095656,226.38,226.31,30.12549]
[1734165394771,8.26122565,226.37,226.31,30.12549]
[1734165395069,0.54833995,226.36,226.31,30.12549]
[1734165396970,8.26122565,226.37,226.33,0.12549]
[1734165397265,8.26122565,226.39,226.33,30.12549]
[1734165397444,0.54833995,226.38,226.33,30.12549]
[1734165399051,8.26122565,226.36,226.33,30.0]
[1734165399284,0.54833995,226.35,226.33,30.0]
[1734165399651,8.26122565,226.34,226.33,30.0]
[1734165403160,8.26122565,226.34,226.27,0.37647]
[1734165403355,8.26122565,226.33,226.28,30.0]
[1734165403558,8.26122565,226.29,226.28,30.0]
[1734165405264,8.26122565,226.29,226.19,0.25098]
[1734165405462,8.26122565,226.26,226.19,30.25098]
[1734165405673,8.26122565,226.26,226.2,0.12549]
[1734165406372,8.26122565,226.26,226.22,30.0]
[1734165409266,0.21007937,226.23,226.22,30.12549]
[1734165410983,0.21007937,226.23,226.22,30.0]
[1734165412478,0.21007937,226.23,226.2,0.12549]
[1734165412676,0.21007937,226.23,226.19,0.25098]
[1734165414886,0.21007937,226.23,226.19,0.12549]
[1734165415095,0.21007937,226.23,226.19,0.25098]
[1734165415393,0.21007937,226.23,226.2,0.12549]
[1734165415706,0.21007937,226.23,226.22,30.0]
[1734165418166,0.21007937,226.23,226.22,38.63769565]
[1734165418367,0.21007937,226.23,226.22,30.37647]
[1734165419473,0.21007937,226.23,226.22,20.37647]
[1734165420394,0.21007937,226.23,226.22,0.12549]
[1734165421593,0.21007937,226.23,226.2,0.12549]
[1734165421778,0.21007937,226.23,226.19,0.25098]
[1734165422603,0.21007937,226.23,226.19,30.0]
[1734165422894,0.75841932,226.23,226.19,30.0]
[1734165423694,0.21007937,226.23,226.19,30.0]
[1734165425893,0.75841932,226.23,226.19,30.0]
[1734165426304,8.26122565,226.22,226.19,30.0]
[1734165426472,0.54833995,226.21,226.19,30.0]
[1734165426992,8.26122565,226.2,226.19,30.0]
[1734165429399,8.26122565,226.21,226.19,30.0]
[1734165429983,8.26122565,226.21,226.14,8.63769565]
[1734165430191,8.26122565,226.22,226.17,0.12549]
[1734165430399,0.21007937,226.23,226.17,0.12549]
[1734165430400,8.47130502,226.23,226.17,0.12549]
[1734165431201,0.21007937,226.23,226.18,0.12549]
[1734165431585,9.01964497,226.23,226.18,0.12549]
[1734165431788,8.26122565,226.22,226.18,0.12549]
[1734165432186,8.26122565,226.22,226.18,29.35549]
[1734165432598,0.54833995,226.21,226.18,29.23]
[1734165432906,8.8095656,226.21,226.18,29.23]
[1734165433109,8.26122565,226.22,226.18,29.23]
[1734165437491,8.26122565,226.2,226.18,29.23]
[1734165438788,0.75841932,226.23,226.18,29.23]
[1734165438990,0.75841932,226.23,226.22,0.37647]
[1734165438991,0.21007937,226.23,226.22,0.37647]
[1734165439201,0.21007937,226.23,226.22,44.07959495]
[1734165439808,0.21007937,226.23,226.22,49.56188389]
[1734165440390,8.26122565,226.36,226.26,0.25098]
[1734165440611,0.54833995,226.35,226.28,8.26122565]
[1734165440788,8.8095656,226.35,226.28,8.26122565]
[1734165441189,8.8095656,226.35,226.29,0.12549]
[1734165441508,0.54833995,226.48,226.36,0.12549]
[1734165441705,8.26122565,226.49,226.43,0.25098]
[1734165441890,0.54833995,226.55,226.45,8.51220565]
[1734165442091,8.26122565,226.52,226.46,0.25098]
[1734165442510,8.8095656,226.51,226.46,0.12549]
[1734165443298,13.40892623,226.51,226.46,0.12549]
[1734165443510,13.40892623,226.51,226.44,0.12549]
[1734165443511,12.86058628,226.5,226.44,0.12549]
[1734165443708,12.86058628,226.5,226.44,0.25098]
[1734165444333,0.54833995,226.57,226.49,20.0]
[1734165444597,12.86058628,226.56,226.5,0.37647]
[1734165444814,12.86058628,226.54,226.5,0.12549]
[1734165445112,0.54833995,226.53,226.5,26.9]
[1734165445314,12.86058628,226.52,226.5,26.9]
[1734165445518,0.54833995,226.51,226.5,26.9]
[1734165446716,12.86058628,226.52,226.5,26.9]
[1734165446892,12.86058628,226.52,226.45,0.25098]
[1734165447493,0.54833995,226.51,226.45,0.25098]
[1734165447927,0.54833995,226.51,226.46,26.91]
[1734165448095,12.86058628,226.52,226.46,26.91]
[1734165448496,24.32522395,226.57,226.47,0.25098]
[1734165449027,12.86058628,226.54,226.47,30.08098]
[1734165449217,12.86058628,226.54,226.47,0.25098]
[1734165449517,0.54833995,226.59,226.5,0.12549]
[1734165449722,12.86058628,226.58,226.52,0.12549]
[1734165450039,12.86058628,226.57,226.52,0.12549]
[1734165450830,12.86058628,226.56,226.5,29.82]
[1734165451004,12.86058628,226.54,226.5,29.82]
[1734165451201,12.86058628,226.54,226.48,0.37647]
[1734165451403,12.86058628,226.55,226.48,0.37647]
[1734165451836,12.86058628,226.55,226.48,13.23705628]
[1734165452201,12.86058628,226.55,226.5,0.12549]
[1734165453021,12.86058628,226.55,226.49,0.12549]
[1734165453223,12.86058628,226.55,226.49,0.25098]
[1734165453609,12.86058628,226.5,226.36,1.6339]
[1734165453807,12.86058628,226.47,226.39,42.70058628]
[1734165454009,12.86058628,226.47,226.4,0.25098]
[1734165454505,12.86058628,226.47,226.4,13.11156628]
[1734165454697,12.86058628,226.47,226.43,0.12549]
[1734165456016,12.86058628,226.47,226.43,29.44549]
[1734165456220,0.21007937,226.52,226.48,0.12549]
[1734165457335,0.21007937,226.52,226.49,0.12549]
[1734165458429,0.21007937,226.52,226.49,29.43549]
[1734165464245,0.21007937,226.52,226.49,0.25098]
[1734165467142,0.21007937,226.52,226.49,30.05098]
[1734165467834,0.21007937,226.52,226.49,29.92549]
[1734165468022,0.21007937,226.52,226.51,32.86058628]
[1734165468218,0.21007937,226.52,226.51,62.66058628]
[1734165469154,0.21007937,226.52,226.51,63.32263711]
[1734165470039,0.21007937,226.52,226.51,62.66058628]
[1734165475127,0.21007937,226.52,226.51,58.02457683]
[1734165476347,0.21007937,226.52,226.51,28.22457683]
[1734165478355,0.21007937,226.52,226.51,57.55457683]
[1734165479744,0.21007937,226.52,226.51,28.22457683]
[1734165482850,0.21007937,226.52,226.51,57.55457683]
[1734165486134,0.21007937,226.52,226.51,81.33146083]
[1734165486662,10.0,226.6,226.51,81.33146083]
[1734165486844,10.0,226.6,226.56,8.22457683]
[1734165487042,10.0,226.6,226.56,38.22457683]
[1734165488250,10.0,226.6,226.56,8.22457683]
[1734165489159,10.0,226.6,226.57,8.88648234]
[1734165491071,10.0,226.6,226.58,8.22457683]
[1734165491366,10.0,226.6,226.58,38.88642155]
[1734165495141,10.0,226.6,226.58,30.66184472]
[1734165495350,10.0,226.6,226.58,30.0]
[1734165496852,10.0,226.6,226.57,8.88643019]
[1734165497061,10.0,226.6,226.58,8.22457683]
[1734165497856,10.0,226.6,226.58,30.0]
[1734165505669,10.0,226.6,226.56,8.22457683]
[1734165506451,10.0,226.6,226.57,0.66187894]
[1734165507189,10.0,226.6,226.56,8.22457683]
[1734165508673,10.0,226.6,226.58,29.12]
[1734165511159,10.0,226.6,226.57,8.88646796]
[1734165512151,10.0,226.6,226.58,32.00146083]
[1734165512364,10.0,226.6,226.58,32.66326773]
[1734165513358,10.0,226.6,226.59,8.88638415]
[1734165514282,10.0,226.6,226.59,38.00638415]
[1734165515778,10.0,226.6,226.59,29.78180732]
[1734165517951,10.0,226.6,226.59,29.12]
[1734165525691,10.0,226.6,226.56,8.22457683]
[1734165527778,10.0,226.6,226.52,8.22457683]
[1734165527979,18.22457683,226.6,226.52,8.22457683]
[1734165528688,18.22457683,226.6,226.54,29.96]
[1734165528890,8.22457683,226.59,226.54,29.96]
[1734165529095,8.22457683,226.59,226.52,8.88661406]
[1734165529589,18.22457683,226.6,226.52,8.88661406]
[1734165531595,18.22457683,226.6,226.53,8.22457683]
[1734165532093,18.22457683,226.6,226.54,30.0]
[1734165533094,0.54833995,226.59,226.54,30.0]
[1734165533398,8.77291678,226.59,226.52,8.22457683]
[1734165533593,8.22457683,226.58,226.53,30.0]
[1734165533766,8.22457683,226.57,226.53,30.0]
[1734165534194,0.54833995,226.56,226.53,30.0]
[1734165534583,0.54833995,226.56,226.5,8.22457683]
[1734165535886,8.22457683,226.55,226.49,20.0]
[1734165536088,8.22457683,226.53,226.49,20.0]
[1734165537202,0.54833995,226.52,226.43,20.66224803]
[1734165537398,0.54833995,226.52,226.49,20.0]
[1734165537602,0.54833995,226.52,226.5,30.0]
[1734165538088,8.22457683,226.53,226.5,30.0]
[1734165539195,8.77291678,226.54,226.5,30.0]
[1734165540393,8.22457683,226.53,226.5,30.0]
[1734165540570,8.22457683,226.51,226.5,30.0]
[1734165541168,8.22457683,226.52,226.5,30.0]
[1734165541480,0.54833995,226.51,226.5,30.0]
[1734165542681,8.77291678,226.51,226.5,30.0]
[1734165542883,8.77291678,226.51,226.45,30.0]
[1734165543270,0.54833995,226.51,226.45,30.0]
[1734165543892,8.22457683,226.52,226.45,30.0]
[1734165545306,0.54833995,226.51,226.45,30.0]
[1734165547286,0.54833995,226.51,226.44,8.22457683]
[1734165548488,8.77291678,226.51,226.44,8.22457683]
[1734165548692,8.22457683,226.48,226.43,20.0]
[1734165548881,0.54833995,226.47,226.43,20.0]
[1734165549086,0.54833995,226.47,226.41,8.22457683]
[1734165549286,0.54833995,226.47,226.38,0.66232992]
[1734165549503,0.54833995,226.47,226.41,8.22457683]
[1734165549895,0.54833995,226.47,226.4,8.22457683]